[Event "Titled Tuesday Blitz May 23 Early 2023"]
[White "Rios Escobar, Adan"]
[Black "Makhmudov, Shukhrat"]
[WhiteFideId "3403645"]
[BlackFideId "14200775"]
[WhiteElo "2456"]
[BlackElo "2135"]
[Result "1-0"]
[Round "11"]
[TimeControl "180+2"]
[Date "2023.05.23"]
[WhiteClock "0:00:12"]
[BlackClock "0:00:02"]

1. d4 {[%clk 0:02:57]}  Nf6 {[%clk 0:02:57]} 2. g3 {[%clk 0:02:58]}  d5 {[%clk 0:02:57]} 3. Nf3 {[%clk 0:02:57]}  Bg4 {[%clk 0:02:56]} 4. Ne5 {[%clk 0:02:56]}  Bf5 {[%clk 0:02:56]} 5. c4 {[%clk 0:02:57]}  e6 {[%clk 0:02:55]} 6. Nc3 {[%clk 0:02:57]}  Nbd7 {[%clk 0:02:55]} 7. cxd5 {[%clk 0:02:56]}  exd5 {[%clk 0:02:55]} 8. Qb3 {[%clk 0:02:54]}  Nb6 {[%clk 0:02:54]} 9. a4 {[%clk 0:02:50]}  a5 {[%clk 0:02:30]} 10. Bg2 {[%clk 0:02:49]}  Bb4 {[%clk 0:02:29]} 11. O-O {[%clk 0:02:49]}  Be6 {[%clk 0:02:24]} 12. Bg5 {[%clk 0:02:47]}  h6 {[%clk 0:02:23]} 13. Bf4 {[%clk 0:02:44]}  O-O {[%clk 0:02:22]} 14. Qc2 {[%clk 0:02:43]}  Rc8 {[%clk 0:02:20]} 15. Rfd1 {[%clk 0:02:37]}  Qe7 {[%clk 0:02:17]} 16. Nd3 {[%clk 0:02:34]}  Bd6 {[%clk 0:02:15]} 17. Bxd6 {[%clk 0:02:30]}  Qxd6 {[%clk 0:02:14]} 18. Nb5 {[%clk 0:02:31]}  Qd7 {[%clk 0:02:14]} 19. b3 {[%clk 0:02:31]}  c6 {[%clk 0:02:11]} 20. Nc5 {[%clk 0:02:30]}  Qe7 {[%clk 0:02:10]} 21. Nc3 {[%clk 0:02:22]}  Rfe8 {[%clk 0:02:05]} 22. e3 {[%clk 0:02:22]}  Bg4 {[%clk 0:02:04]} 23. Re1 {[%clk 0:02:22]}  Rc7 {[%clk 0:02:00]} 24. Qd2 {[%clk 0:02:21]}  Nbd7 {[%clk 0:01:55]} 25. Nd3 {[%clk 0:02:18]}  Ne4 {[%clk 0:01:49]} 26. Nxe4 {[%clk 0:02:17]}  dxe4 {[%clk 0:01:50]} 27. Nf4 {[%clk 0:02:10]}  b6 {[%clk 0:01:49]} 28. Rac1 {[%clk 0:02:07]}  c5 {[%clk 0:01:44]} 29. Nd5 {[%clk 0:02:06]}  Qd6 {[%clk 0:01:43]} 30. Nxc7 {[%clk 0:02:06]}  Qxc7 {[%clk 0:01:43]} 31. Rc3 {[%clk 0:01:55]}  Qd6 {[%clk 0:01:40]} 32. Rec1 {[%clk 0:01:54]}  Bf3 {[%clk 0:01:39]} 33. Qc2 {[%clk 0:01:49]}  Bxg2 {[%clk 0:01:38]} 34. Kxg2 {[%clk 0:01:49]}  cxd4 {[%clk 0:01:38]} 35. exd4 {[%clk 0:01:46]}  Qd5 {[%clk 0:01:33]} 36. Re3 {[%clk 0:01:38]}  Nf6 {[%clk 0:01:32]} 37. Qc4 {[%clk 0:01:37]}  Qf5 {[%clk 0:01:26]} 38. Qb5 {[%clk 0:01:27]}  Qe6 {[%clk 0:01:02]} 39. Rc6 {[%clk 0:01:19]}  Qe7 {[%clk 0:00:55]} 40. Rxb6 {[%clk 0:01:11]}  Ng4 {[%clk 0:00:53]} 41. Re2 {[%clk 0:00:54]}  e3 {[%clk 0:00:19]} 42. f3 {[%clk 0:00:48]}  Nf6 {[%clk 0:00:17]} 43. Rb8 {[%clk 0:00:45]}  Rxb8 {[%clk 0:00:08]} 44. Qxb8+ {[%clk 0:00:46]}  Kh7 {[%clk 0:00:09]} 45. Qe5 {[%clk 0:00:43]}  Qb7 {[%clk 0:00:08]} 46. Qxe3 {[%clk 0:00:41]}  g6 {[%clk 0:00:08]} 47. Qe5 {[%clk 0:00:33]}  Ng4 {[%clk 0:00:06]} 48. Qe7 {[%clk 0:00:22]}  Qd5 {[%clk 0:00:06]} 49. Qe4 {[%clk 0:00:17]}  Nf6 {[%clk 0:00:03]} 50. Qxd5 {[%clk 0:00:17]}  Nxd5 {[%clk 0:00:04]} 51. Re5 {[%clk 0:00:17]}  Nc3 {[%clk 0:00:04]} 52. Rxa5 {[%clk 0:00:16]}  Kg7 {[%clk 0:00:02]} 53. Rc5 {[%clk 0:00:12]} 1-0


[Site "https://www.chess.com"]

[Event "Titled Tuesday Blitz May 23 Early 2023"]
[White "Klepikov, Nikita"]
[Black "Rottenwohrer Suarez, Juan"]
[WhiteFideId "24145220"]
[BlackFideId "32068182"]
[WhiteElo "2025"]
[BlackElo "2174"]
[Result "0-1"]
[Round "11"]
[TimeControl "180+2"]
[Date "2023.05.23"]
[WhiteClock "0:00:00"]
[BlackClock "0:01:08"]

1. e4 {[%clk 0:02:43]}  c5 {[%clk 0:03:00]} 2. Nf3 {[%clk 0:02:43]}  g6 {[%clk 0:03:00]} 3. d4 {[%clk 0:02:43]}  cxd4 {[%clk 0:03:01]} 4. Nxd4 {[%clk 0:02:44]}  Nc6 {[%clk 0:03:01]} 5. Nc3 {[%clk 0:02:42]}  Bg7 {[%clk 0:03:01]} 6. Be3 {[%clk 0:02:43]}  Nf6 {[%clk 0:03:02]} 7. Bc4 {[%clk 0:02:43]}  O-O {[%clk 0:03:02]} 8. Bb3 {[%clk 0:02:44]}  d5 {[%clk 0:03:03]} 9. exd5 {[%clk 0:02:30]}  Na5 {[%clk 0:03:02]} 10. O-O {[%clk 0:02:24]}  Nxb3 {[%clk 0:02:56]} 11. Nxb3 {[%clk 0:02:21]}  b6 {[%clk 0:02:56]} 12. Qd2 {[%clk 0:02:06]}  Bb7 {[%clk 0:02:57]} 13. Rad1 {[%clk 0:02:07]}  Qc7 {[%clk 0:02:54]} 14. Bf4 {[%clk 0:01:51]}  Qd7 {[%clk 0:02:48]} 15. f3 {[%clk 0:01:27]}  Rfd8 {[%clk 0:02:41]} 16. Be5 {[%clk 0:00:53]}  Rac8 {[%clk 0:02:15]} 17. Rfe1 {[%clk 0:00:50]}  b5 {[%clk 0:02:10]} 18. Na5 {[%clk 0:00:44]}  Ba8 {[%clk 0:02:08]} 19. d6 {[%clk 0:00:35]}  b4 {[%clk 0:01:57]} 20. dxe7 {[%clk 0:00:22]}  Qxe7 {[%clk 0:01:51]} 21. Bd6 {[%clk 0:00:08]}  bxc3 {[%clk 0:01:38]} 22. Bxe7 {[%clk 0:00:04]}  Rxd2 {[%clk 0:01:32]} 23. bxc3 {[%clk 0:00:03]}  Rxc2 {[%clk 0:01:25]} 24. Rd6 {[%clk 0:00:02]}  Nd5 {[%clk 0:01:16]} 25. Bh4 {[%clk 0:00:01]}  Bxc3 {[%clk 0:01:12]} 26. Rd1 {[%clk 0:00:00]}  Bxa5 {[%clk 0:01:08]} 0-1


[Site "https://www.chess.com"]

[Event "Titled Tuesday Blitz May 23 Early 2023"]
[White "Ramirez Vido, Robert Yorisan"]
[Black "Kuchava, Ana"]
[WhiteFideId "3513823"]
[BlackFideId "13605348"]
[WhiteElo "2442"]
[BlackElo "2001"]
[Result "1/2-1/2"]
[Round "11"]
[TimeControl "180+2"]
[Date "2023.05.23"]
[WhiteClock "0:00:06"]
[BlackClock "0:00:16"]

1. f4 {[%clk 0:03:00]}  d5 {[%clk 0:02:57]} 2. Nf3 {[%clk 0:03:00]}  c5 {[%clk 0:02:57]} 3. g3 {[%clk 0:02:59]}  Nc6 {[%clk 0:02:56]} 4. Bg2 {[%clk 0:02:58]}  Nf6 {[%clk 0:02:50]} 5. d3 {[%clk 0:02:58]}  Bg4 {[%clk 0:02:44]} 6. O-O {[%clk 0:02:56]}  Bxf3 {[%clk 0:02:37]} 7. Bxf3 {[%clk 0:02:55]}  e5 {[%clk 0:02:37]} 8. c3 {[%clk 0:02:47]}  Bd6 {[%clk 0:02:29]} 9. e4 {[%clk 0:02:41]}  d4 {[%clk 0:02:15]} 10. cxd4 {[%clk 0:02:37]}  Nxd4 {[%clk 0:02:04]} 11. Bg2 {[%clk 0:02:35]}  O-O {[%clk 0:02:03]} 12. Nc3 {[%clk 0:02:30]}  h6 {[%clk 0:01:53]} 13. f5 {[%clk 0:02:25]}  Rc8 {[%clk 0:01:49]} 14. g4 {[%clk 0:02:24]}  Nh7 {[%clk 0:01:38]} 15. Nd5 {[%clk 0:02:21]}  c4 {[%clk 0:01:27]} 16. f6 {[%clk 0:02:19]}  g5 {[%clk 0:01:17]} 17. h4 {[%clk 0:01:58]}  Ne6 {[%clk 0:01:08]} 18. dxc4 {[%clk 0:01:48]}  Rxc4 {[%clk 0:01:07]} 19. Qd3 {[%clk 0:01:43]}  Rd4 {[%clk 0:00:55]} 20. Qe2 {[%clk 0:01:42]}  Nf4 {[%clk 0:00:53]} 21. Bxf4 {[%clk 0:01:25]}  exf4 {[%clk 0:00:53]} 22. hxg5 {[%clk 0:01:16]}  hxg5 {[%clk 0:00:51]} 23. Rad1 {[%clk 0:01:05]}  Bc5 {[%clk 0:00:45]} 24. Kh2 {[%clk 0:00:54]}  Nxf6 {[%clk 0:00:44]} 25. Rxd4 {[%clk 0:00:52]}  Bxd4 {[%clk 0:00:44]} 26. Rd1 {[%clk 0:00:52]}  Be5 {[%clk 0:00:34]} 27. Bf3 {[%clk 0:00:48]}  Nxd5 {[%clk 0:00:24]} 28. exd5 {[%clk 0:00:44]}  Qd6 {[%clk 0:00:23]} 29. Kg2 {[%clk 0:00:42]}  Kg7 {[%clk 0:00:22]} 30. Rh1 {[%clk 0:00:35]}  Rh8 {[%clk 0:00:22]} 31. Rxh8 {[%clk 0:00:33]}  Kxh8 {[%clk 0:00:23]} 32. Be4 {[%clk 0:00:30]}  Kg7 {[%clk 0:00:23]} 33. Qf3 {[%clk 0:00:20]}  Bxb2 {[%clk 0:00:19]} 34. Qh3 {[%clk 0:00:19]}  Qh6 {[%clk 0:00:19]} 35. Qb3 {[%clk 0:00:18]}  Qb6 {[%clk 0:00:17]} 36. Qh3 {[%clk 0:00:16]}  Qh6 {[%clk 0:00:16]} 37. Qb3 {[%clk 0:00:12]}  Qb6 {[%clk 0:00:16]} 38. Qxb6 {[%clk 0:00:05]}  axb6 {[%clk 0:00:16]} 39. Kf3 {[%clk 0:00:04]}  Kf6 {[%clk 0:00:16]} 40. Kf2 {[%clk 0:00:01]}  Ke5 {[%clk 0:00:16]} 41. Kf3 {[%clk 0:00:01]}  Ba3 {[%clk 0:00:15]} 42. d6 {[%clk 0:00:02]}  Bxd6 {[%clk 0:00:15]} 43. Bxb7 {[%clk 0:00:02]}  f5 {[%clk 0:00:14]} 44. gxf5 {[%clk 0:00:02]}  Kxf5 {[%clk 0:00:15]} 45. Bc8+ {[%clk 0:00:02]}  Ke5 {[%clk 0:00:14]} 46. Bg4 {[%clk 0:00:03]}  Be7 {[%clk 0:00:14]} 47. Bh5 {[%clk 0:00:03]}  Kf5 {[%clk 0:00:14]} 48. Bg4+ {[%clk 0:00:04]}  Kg6 {[%clk 0:00:15]} 49. Be6 {[%clk 0:00:04]}  Kf6 {[%clk 0:00:15]} 50. Bg4 {[%clk 0:00:04]}  Ke5 {[%clk 0:00:15]} 51. Bc8 {[%clk 0:00:05]}  Kd4 {[%clk 0:00:16]} 52. Bg4 {[%clk 0:00:05]}  Kc3 {[%clk 0:00:16]} 53. Be6 {[%clk 0:00:06]}  Kb2 {[%clk 0:00:17]} 54. Kg4 {[%clk 0:00:06]}  b5 {[%clk 0:00:16]} 55. Kf3 {[%clk 0:00:07]}  b4 {[%clk 0:00:16]} 56. Bb3 {[%clk 0:00:07]}  Kc3 {[%clk 0:00:16]} 57. Be6 {[%clk 0:00:07]}  Kd2 {[%clk 0:00:16]} 58. Bb3 {[%clk 0:00:06]} 1/2-1/2


[Site "https://www.chess.com"]

[Event "Titled Tuesday Blitz May 23 Early 2023"]
[White "Tsyhanchuk, Stanislav"]
[Black "Begunov, Konstantin"]
[WhiteFideId "13505130"]
[BlackFideId "4118510"]
[WhiteElo "2173"]
[BlackElo "2050"]
[Result "0-1"]
[Round "11"]
[TimeControl "180+2"]
[Date "2023.05.23"]
[WhiteClock "0:00:15"]
[BlackClock "0:00:15"]

1. c4 {[%clk 0:03:00]}  c6 {[%clk 0:02:58]} 2. e3 {[%clk 0:03:00]}  d5 {[%clk 0:02:58]} 3. Nc3 {[%clk 0:03:01]}  Nf6 {[%clk 0:02:58]} 4. Nf3 {[%clk 0:03:01]}  a6 {[%clk 0:02:58]} 5. b3 {[%clk 0:03:01]}  Bg4 {[%clk 0:02:58]} 6. d4 {[%clk 0:02:57]}  e6 {[%clk 0:02:57]} 7. Bb2 {[%clk 0:02:52]}  Ne4 {[%clk 0:02:55]} 8. h3 {[%clk 0:02:48]}  Bb4 {[%clk 0:02:46]} 9. Rc1 {[%clk 0:02:38]}  Qa5 {[%clk 0:01:59]} 10. Qc2 {[%clk 0:02:36]}  Bf5 {[%clk 0:01:49]} 11. Bd3 {[%clk 0:02:34]}  Nxc3 {[%clk 0:01:44]} 12. Bxc3 {[%clk 0:02:35]}  Bxc3+ {[%clk 0:01:15]} 13. Qxc3 {[%clk 0:02:36]}  Qxc3+ {[%clk 0:01:14]} 14. Rxc3 {[%clk 0:02:37]}  Bxd3 {[%clk 0:01:14]} 15. Rxd3 {[%clk 0:02:38]}  Nd7 {[%clk 0:01:14]} 16. Kd2 {[%clk 0:02:31]}  Ke7 {[%clk 0:01:14]} 17. Kc3 {[%clk 0:02:31]}  Rhc8 {[%clk 0:01:14]} 18. Re1 {[%clk 0:02:30]}  Nf6 {[%clk 0:01:09]} 19. Nd2 {[%clk 0:02:28]}  c5 {[%clk 0:01:07]} 20. e4 {[%clk 0:02:17]}  cxd4+ {[%clk 0:01:01]} 21. Rxd4 {[%clk 0:02:03]}  dxc4 {[%clk 0:00:34]} 22. Rxc4 {[%clk 0:01:57]}  b5 {[%clk 0:00:33]} 23. Rxc8 {[%clk 0:01:56]}  Rxc8+ {[%clk 0:00:34]} 24. Kd3 {[%clk 0:01:47]}  Nd7 {[%clk 0:00:32]} 25. f4 {[%clk 0:01:41]}  e5 {[%clk 0:00:29]} 26. g3 {[%clk 0:01:25]}  f6 {[%clk 0:00:29]} 27. b4 {[%clk 0:01:24]}  Nb6 {[%clk 0:00:27]} 28. a3 {[%clk 0:01:07]}  Rd8+ {[%clk 0:00:23]} 29. Kc3 {[%clk 0:00:53]}  Na4+ {[%clk 0:00:21]} 30. Kc2 {[%clk 0:00:50]}  Rc8+ {[%clk 0:00:21]} 31. Kd3 {[%clk 0:00:45]}  Rc3+ {[%clk 0:00:21]} 32. Ke2 {[%clk 0:00:43]}  Rxg3 {[%clk 0:00:21]} 33. Rc1 {[%clk 0:00:41]}  exf4 {[%clk 0:00:19]} 34. Rc7+ {[%clk 0:00:39]}  Ke6 {[%clk 0:00:20]} 35. Nf3 {[%clk 0:00:36]}  Rg2+ {[%clk 0:00:20]} 36. Kf1 {[%clk 0:00:34]}  Ra2 {[%clk 0:00:19]} 37. Nd4+ {[%clk 0:00:25]}  Ke5 {[%clk 0:00:18]} 38. Nc2 {[%clk 0:00:26]}  Kxe4 {[%clk 0:00:17]} 39. Kf2 {[%clk 0:00:23]}  g5 {[%clk 0:00:17]} 40. Ke2 {[%clk 0:00:17]}  Nb6 {[%clk 0:00:17]} 41. Re7+ {[%clk 0:00:16]}  Kf5 {[%clk 0:00:17]} 42. Kd3 {[%clk 0:00:15]}  Nc4 {[%clk 0:00:17]} 43. Rg7 {[%clk 0:00:13]}  f3 {[%clk 0:00:17]} 44. Nd4+ {[%clk 0:00:13]}  Kf4 {[%clk 0:00:16]} 45. Rf7 {[%clk 0:00:13]}  Ne5+ {[%clk 0:00:15]} 46. Kc3 {[%clk 0:00:12]}  Nxf7 {[%clk 0:00:15]} 47. Ne6+ {[%clk 0:00:12]}  Ke3 {[%clk 0:00:15]} 48. Ng7 {[%clk 0:00:13]}  f2 {[%clk 0:00:15]} 49. Nh5 {[%clk 0:00:14]}  f1=Q {[%clk 0:00:15]} 50. Ng3 {[%clk 0:00:15]}  Qd3# {[%clk 0:00:15]} 0-1


[Site "https://www.chess.com"]

[Event "Titled Tuesday Blitz May 23 Early 2023"]
[White "Zaitsev, Alexander"]
[Black "DIM90"]
[WhiteFideId "4164490"]
[WhiteElo "2373"]
[BlackElo "2278"]
[Result "0-1"]
[Round "11"]
[TimeControl "180+2"]
[Date "2023.05.23"]
[WhiteClock "0:00:00"]
[BlackClock "0:00:06"]

1. e4 {[%clk 0:03:00]}  e5 {[%clk 0:03:00]} 2. Nc3 {[%clk 0:03:00]}  Nf6 {[%clk 0:03:00]} 3. Bc4 {[%clk 0:03:01]}  Nxe4 {[%clk 0:02:59]} 4. Qh5 {[%clk 0:03:01]}  Nd6 {[%clk 0:03:00]} 5. Qxe5+ {[%clk 0:03:01]}  Qe7 {[%clk 0:02:59]} 6. Qxe7+ {[%clk 0:03:01]}  Bxe7 {[%clk 0:03:00]} 7. Bb3 {[%clk 0:03:02]}  Nf5 {[%clk 0:02:59]} 8. Nf3 {[%clk 0:03:03]}  c6 {[%clk 0:02:58]} 9. O-O {[%clk 0:03:03]}  d5 {[%clk 0:02:58]} 10. Re1 {[%clk 0:03:03]}  Be6 {[%clk 0:02:58]} 11. Ne2 {[%clk 0:03:02]}  Na6 {[%clk 0:02:55]} 12. c3 {[%clk 0:02:53]}  Nc5 {[%clk 0:02:51]} 13. Bc2 {[%clk 0:02:54]}  O-O {[%clk 0:02:45]} 14. Nf4 {[%clk 0:02:52]}  Nd6 {[%clk 0:02:39]} 15. d3 {[%clk 0:01:57]}  Rae8 {[%clk 0:02:38]} 16. b4 {[%clk 0:01:47]}  Bf6 {[%clk 0:02:19]} 17. bxc5 {[%clk 0:01:37]}  Bxc3 {[%clk 0:02:18]} 18. cxd6 {[%clk 0:01:29]}  Bxa1 {[%clk 0:02:16]} 19. Ba3 {[%clk 0:01:18]}  Bc3 {[%clk 0:02:12]} 20. Rb1 {[%clk 0:01:06]}  b6 {[%clk 0:02:02]} 21. d7 {[%clk 0:00:59]}  Bxd7 {[%clk 0:02:02]} 22. Bxf8 {[%clk 0:00:59]}  Kxf8 {[%clk 0:02:02]} 23. d4 {[%clk 0:00:50]}  g6 {[%clk 0:01:52]} 24. h3 {[%clk 0:00:50]}  f6 {[%clk 0:01:46]} 25. Rd1 {[%clk 0:00:47]}  Bb4 {[%clk 0:01:32]} 26. g4 {[%clk 0:00:41]}  Bd6 {[%clk 0:01:32]} 27. Nd3 {[%clk 0:00:39]}  Re2 {[%clk 0:01:30]} 28. Rd2 {[%clk 0:00:38]}  Rxd2 {[%clk 0:01:29]} 29. Nxd2 {[%clk 0:00:38]}  c5 {[%clk 0:01:20]} 30. dxc5 {[%clk 0:00:32]}  bxc5 {[%clk 0:01:20]} 31. Nb1 {[%clk 0:00:27]}  c4 {[%clk 0:01:16]} 32. Nb2 {[%clk 0:00:23]}  Bb4 {[%clk 0:01:11]} 33. a3 {[%clk 0:00:22]}  Ba5 {[%clk 0:01:11]} 34. Na4 {[%clk 0:00:19]}  d4 {[%clk 0:01:01]} 35. Nc5 {[%clk 0:00:19]}  d3 {[%clk 0:00:56]} 36. Nxd7+ {[%clk 0:00:19]}  Ke7 {[%clk 0:00:56]} 37. Bxd3 {[%clk 0:00:17]}  cxd3 {[%clk 0:00:56]} 38. Nc5 {[%clk 0:00:11]}  d2 {[%clk 0:00:54]} 39. Nxd2 {[%clk 0:00:11]}  Bxd2 {[%clk 0:00:55]} 40. Kf1 {[%clk 0:00:12]}  Bc1 {[%clk 0:00:49]} 41. a4 {[%clk 0:00:12]}  Ba3 {[%clk 0:00:48]} 42. Nd3 {[%clk 0:00:12]}  Kd6 {[%clk 0:00:47]} 43. Ke2 {[%clk 0:00:12]}  Kd5 {[%clk 0:00:44]} 44. Ke3 {[%clk 0:00:10]}  Bc5+ {[%clk 0:00:42]} 45. Kd2 {[%clk 0:00:08]}  Bd4 {[%clk 0:00:32]} 46. h4 {[%clk 0:00:08]}  a5 {[%clk 0:00:31]} 47. f3 {[%clk 0:00:08]}  Kc4 {[%clk 0:00:30]} 48. f4 {[%clk 0:00:06]}  Kb3 {[%clk 0:00:29]} 49. h5 {[%clk 0:00:04]}  Kxa4 {[%clk 0:00:24]} 50. h6 {[%clk 0:00:04]}  Kb3 {[%clk 0:00:21]} 51. Nc1+ {[%clk 0:00:02]}  Kc4 {[%clk 0:00:19]} 52. Ne2 {[%clk 0:00:03]}  a4 {[%clk 0:00:19]} 53. Kc2 {[%clk 0:00:02]}  a3 {[%clk 0:00:15]} 54. Kb1 {[%clk 0:00:02]}  Bc5 {[%clk 0:00:12]} 55. Ka2 {[%clk 0:00:02]}  Kd3 {[%clk 0:00:11]} 56. Ng3 {[%clk 0:00:03]}  Ke3 {[%clk 0:00:11]} 57. f5 {[%clk 0:00:01]}  g5 {[%clk 0:00:07]} 58. Nh5 {[%clk 0:00:00]}  Be7 {[%clk 0:00:06]} 0-1


[Site "https://www.chess.com"]

[Event "Titled Tuesday Blitz May 23 Early 2023"]
[White "Nugumanov, Bakhtiyar"]
[Black "Tarasova, Viktoriya"]
[WhiteFideId "13701797"]
[BlackFideId "4175840"]
[WhiteElo "2209"]
[BlackElo "2182"]
[Result "0-1"]
[Round "11"]
[TimeControl "180+2"]
[Date "2023.05.23"]
[WhiteClock "0:00:00"]
[BlackClock "0:00:03"]

1. Nf3 {[%clk 0:02:44]}  Nf6 {[%clk 0:02:59]} 2. c4 {[%clk 0:02:44]}  e6 {[%clk 0:02:58]} 3. g3 {[%clk 0:02:44]}  b6 {[%clk 0:02:58]} 4. Bg2 {[%clk 0:02:45]}  Bb7 {[%clk 0:02:59]} 5. O-O {[%clk 0:02:45]}  c5 {[%clk 0:02:59]} 6. Nc3 {[%clk 0:02:46]}  Be7 {[%clk 0:02:59]} 7. Re1 {[%clk 0:02:46]}  O-O {[%clk 0:02:58]} 8. e4 {[%clk 0:02:47]}  d6 {[%clk 0:02:59]} 9. d4 {[%clk 0:02:47]}  cxd4 {[%clk 0:02:58]} 10. Nxd4 {[%clk 0:02:48]}  Qc8 {[%clk 0:02:52]} 11. b3 {[%clk 0:02:45]}  Nbd7 {[%clk 0:02:52]} 12. Bb2 {[%clk 0:02:43]}  a6 {[%clk 0:02:52]} 13. Qe2 {[%clk 0:02:38]}  Re8 {[%clk 0:02:36]} 14. Rad1 {[%clk 0:02:29]}  Qc7 {[%clk 0:02:36]} 15. f4 {[%clk 0:02:29]}  Rad8 {[%clk 0:02:33]} 16. e5 {[%clk 0:01:50]}  dxe5 {[%clk 0:02:08]} 17. fxe5 {[%clk 0:01:51]}  Bc5 {[%clk 0:00:36]} 18. Na4 {[%clk 0:01:38]}  Bxg2 {[%clk 0:00:26]} 19. Kxg2 {[%clk 0:01:31]}  Qb7+ {[%clk 0:00:20]} 20. Qf3 {[%clk 0:01:09]}  Qxf3+ {[%clk 0:00:18]} 21. Kxf3 {[%clk 0:01:09]}  Nxe5+ {[%clk 0:00:08]} 22. Rxe5 {[%clk 0:01:08]}  Nd7 {[%clk 0:00:09]} 23. Ree1 {[%clk 0:01:01]}  e5 {[%clk 0:00:09]} 24. Nxc5 {[%clk 0:00:59]}  Nxc5 {[%clk 0:00:08]} 25. Nc6 {[%clk 0:00:55]}  e4+ {[%clk 0:00:09]} 26. Rxe4 {[%clk 0:00:28]}  Ra8 {[%clk 0:00:06]} 27. Rxe8+ {[%clk 0:00:22]}  Rxe8 {[%clk 0:00:06]} 28. Ne7+ {[%clk 0:00:19]}  Kf8 {[%clk 0:00:06]} 29. Nf5 {[%clk 0:00:10]}  g6 {[%clk 0:00:06]} 30. Nd6 {[%clk 0:00:06]}  Rb8 {[%clk 0:00:06]} 31. Ne4 {[%clk 0:00:05]}  Ne6 {[%clk 0:00:05]} 32. Be5 {[%clk 0:00:04]}  Rc8 {[%clk 0:00:05]} 33. Rd7 {[%clk 0:00:04]}  Ra8 {[%clk 0:00:06]} 34. h4 {[%clk 0:00:05]}  h6 {[%clk 0:00:06]} 35. Nf6 {[%clk 0:00:05]}  b5 {[%clk 0:00:04]} 36. Nd5 {[%clk 0:00:05]}  bxc4 {[%clk 0:00:04]} 37. bxc4 {[%clk 0:00:06]}  Rc8 {[%clk 0:00:04]} 38. Nc7 {[%clk 0:00:06]}  Nxc7 {[%clk 0:00:03]} 39. Rxc7 {[%clk 0:00:07]}  Re8 {[%clk 0:00:03]} 40. Kf4 {[%clk 0:00:06]}  Kg8 {[%clk 0:00:03]} 41. g4 {[%clk 0:00:00]}  g5+ {[%clk 0:00:03]} 0-1


[Site "https://www.chess.com"]

[Event "Titled Tuesday Blitz May 23 Early 2023"]
[White "Matveeva, Olga"]
[Black "Ciuffoletti, Paolo"]
[WhiteFideId "24107018"]
[BlackFideId "807630"]
[WhiteElo "2009"]
[BlackElo "2143"]
[Result "1-0"]
[Round "11"]
[TimeControl "180+2"]
[Date "2023.05.23"]
[WhiteClock "0:01:01"]
[BlackClock "0:00:10"]

1. d4 {[%clk 0:03:00]}  d5 {[%clk 0:02:59]} 2. c4 {[%clk 0:03:01]}  c6 {[%clk 0:02:59]} 3. Nf3 {[%clk 0:03:01]}  Nf6 {[%clk 0:02:59]} 4. e3 {[%clk 0:03:01]}  Bf5 {[%clk 0:02:56]} 5. Nc3 {[%clk 0:03:00]}  e6 {[%clk 0:02:55]} 6. Nh4 {[%clk 0:03:00]}  Be4 {[%clk 0:02:54]} 7. f3 {[%clk 0:02:59]}  Bg6 {[%clk 0:02:53]} 8. Qb3 {[%clk 0:02:57]}  Qb6 {[%clk 0:02:50]} 9. c5 {[%clk 0:02:42]}  Qc7 {[%clk 0:02:45]} 10. Bd2 {[%clk 0:02:33]}  Nbd7 {[%clk 0:02:43]} 11. Nxg6 {[%clk 0:02:25]}  hxg6 {[%clk 0:02:41]} 12. f4 {[%clk 0:02:25]}  b6 {[%clk 0:02:32]} 13. cxb6 {[%clk 0:02:24]}  axb6 {[%clk 0:02:31]} 14. Rc1 {[%clk 0:02:23]}  Be7 {[%clk 0:02:23]} 15. Bd3 {[%clk 0:02:18]}  g5 {[%clk 0:01:30]} 16. O-O {[%clk 0:02:07]}  gxf4 {[%clk 0:01:29]} 17. exf4 {[%clk 0:02:06]}  O-O {[%clk 0:01:27]} 18. Bb1 {[%clk 0:02:02]}  Ne8 {[%clk 0:01:15]} 19. Nb5 {[%clk 0:01:43]}  Qb7 {[%clk 0:01:08]} 20. Qc2 {[%clk 0:01:41]}  Ndf6 {[%clk 0:01:00]} 21. Qxc6 {[%clk 0:01:39]}  Qb8 {[%clk 0:00:30]} 22. f5 {[%clk 0:01:29]}  Nd6 {[%clk 0:00:22]} 23. Bf4 {[%clk 0:01:22]}  Rc8 {[%clk 0:00:11]} 24. Qxc8+ {[%clk 0:01:07]}  Qxc8 {[%clk 0:00:11]} 25. Rxc8+ {[%clk 0:01:01]}  Rxc8 {[%clk 0:00:10]} 1-0


[Site "https://www.chess.com"]

[Event "Titled Tuesday Blitz May 23 Early 2023"]
[White "Kotepalli, Sai Nirupama"]
[Black "Yelisieiev, Yevhenii"]
[WhiteFideId "5039444"]
[BlackFideId "14139642"]
[WhiteElo "2361"]
[BlackElo "2403"]
[Result "0-1"]
[Round "11"]
[TimeControl "180+2"]
[Date "2023.05.23"]
[WhiteClock "0:00:05"]
[BlackClock "0:00:15"]

1. d4 {[%clk 0:03:00]}  d6 {[%clk 0:03:00]} 2. Bf4 {[%clk 0:03:00]}  Nf6 {[%clk 0:03:01]} 3. e3 {[%clk 0:02:59]}  Nbd7 {[%clk 0:02:59]} 4. Nf3 {[%clk 0:02:59]}  g6 {[%clk 0:02:59]} 5. h3 {[%clk 0:02:57]}  Bg7 {[%clk 0:03:00]} 6. Be2 {[%clk 0:02:57]}  O-O {[%clk 0:03:00]} 7. Nbd2 {[%clk 0:02:56]}  b6 {[%clk 0:03:01]} 8. a4 {[%clk 0:02:54]}  a5 {[%clk 0:02:59]} 9. O-O {[%clk 0:02:46]}  Bb7 {[%clk 0:02:59]} 10. c3 {[%clk 0:02:34]}  e6 {[%clk 0:02:51]} 11. Qc2 {[%clk 0:02:33]}  Qe7 {[%clk 0:02:50]} 12. Bh2 {[%clk 0:02:31]}  e5 {[%clk 0:02:40]} 13. dxe5 {[%clk 0:02:26]}  dxe5 {[%clk 0:02:39]} 14. e4 {[%clk 0:02:24]}  Rfe8 {[%clk 0:02:21]} 15. Bd3 {[%clk 0:02:21]}  Rad8 {[%clk 0:02:13]} 16. Nb3 {[%clk 0:02:19]}  Nh5 {[%clk 0:02:03]} 17. Rad1 {[%clk 0:02:16]}  Nf4 {[%clk 0:02:02]} 18. Bb5 {[%clk 0:01:59]}  Rf8 {[%clk 0:01:42]} 19. Bxd7 {[%clk 0:01:37]}  Rxd7 {[%clk 0:01:39]} 20. Rxd7 {[%clk 0:01:36]}  Qxd7 {[%clk 0:01:39]} 21. Bxf4 {[%clk 0:01:34]}  exf4 {[%clk 0:01:39]} 22. Nc1 {[%clk 0:01:31]}  f5 {[%clk 0:01:18]} 23. Qb3+ {[%clk 0:01:19]}  Kh8 {[%clk 0:01:18]} 24. Ng5 {[%clk 0:01:18]}  fxe4 {[%clk 0:01:06]} 25. Ne6 {[%clk 0:01:18]}  Re8 {[%clk 0:00:50]} 26. Nxg7 {[%clk 0:01:16]}  Kxg7 {[%clk 0:00:50]} 27. Qc4 {[%clk 0:01:04]}  Qf7 {[%clk 0:00:33]} 28. Qd4+ {[%clk 0:01:01]}  Qf6 {[%clk 0:00:29]} 29. Qxf6+ {[%clk 0:00:58]}  Kxf6 {[%clk 0:00:29]} 30. Nb3 {[%clk 0:00:54]}  Bc6 {[%clk 0:00:28]} 31. Ra1 {[%clk 0:00:52]}  Bd7 {[%clk 0:00:22]} 32. Kf1 {[%clk 0:00:45]}  c5 {[%clk 0:00:21]} 33. Nd2 {[%clk 0:00:43]}  Bc6 {[%clk 0:00:20]} 34. b3 {[%clk 0:00:23]}  e3 {[%clk 0:00:20]} 35. fxe3 {[%clk 0:00:23]}  Rxe3 {[%clk 0:00:21]} 36. Rc1 {[%clk 0:00:21]}  Rg3 {[%clk 0:00:20]} 37. Nc4 {[%clk 0:00:15]}  Bxg2+ {[%clk 0:00:19]} 38. Kf2 {[%clk 0:00:15]}  Bxh3 {[%clk 0:00:15]} 39. Nxb6 {[%clk 0:00:05]}  Be6 {[%clk 0:00:15]} 0-1


[Site "https://www.chess.com"]